[Event "CIS Master Groups 2024"]
[Site "Vasto"]
[Date "2024.04.10"]
[Round "4.10"]
[White "Basso, Pier Luigi"]
[Black "Seresin, Francesco"]
[Result "1-0"]
[ECO "B12"]
[WhiteElo "2507"]
[BlackElo "2336"]
[Annotator "TA"]
[PlyCount "199"]
[EventDate "2024.04.07"]
[EventType "team-tourn"]
[EventCountry "ITA"]
[SourceTitle "playchess.com"]
[Source "ChessBase"]
[SourceQuality "1"]
[TimeControl "40/5400+30:900+30"]

{[%evp 9,199,2,6,0,0,4,2,-5,0,3,12,13,24,20,37,29,37,22,66,65,58,34,47,43,40,0,64,52,48,58,56,60,79,66,81,39,78,75,70,63,61,61,72,66,66,71,71,72,75,62,64,61,61,61,61,0,34,16,29,19,28,0,5,0,0,0,37,4,12,12,12,12,12,12,12,12,12,12,12,12,12,12,12,12,26,8,19,0,6,10,8,0,0,0,0,0,4,6,10,0,6,3,2,0,9,9,9,9,9,0,9,0,9,0,0,0,10,10,10,10,10,10,10,10,10,3,18,10,10,10,18,0,0,0,0,0,0,0,0,0,0,0,0,0,0,0,0,0,0,0,0,0,0,0,0,0,0,0,0,0,0,0,0,0,0,0,0,0,0,0,0,0,0,0,0,0,0,0,0,0,8,8,8,8,8,8,4115,1569,29968,8,29978,29980]} 1. e4 {[%emt 0:11:06]} c6 {[%emt 0:01:09]} 2. d4 {[%emt 0:02:05]} d5 {[%emt 0:00:09]} 3. e5 {[%emt 0:00:06]} c5 {[%emt 0:01:27]} 4. Nf3 {[%emt 0:02:25]} cxd4 {[%emt 0:01:43]} 5. Qxd4 {[%emt 0:00:12]} Nc6 {[%emt 0:01:14]} 6. Qf4 {[%emt 0:00:09]} e6 {[%emt 0:00:55]} 7. Nc3 {[%emt 0:00:46]} Nb4 {[%emt 0:02:57]} 8. Qd2 {[%emt 0:00:08] The position is equal.} a6 {[%emt 0:09:56] Against Nb5} 9. a3 {[%emt 0:00:07]} Nc6 {[%emt 0:00:09]} 10. Bd3 {[%emt 0:00:06]} f6 {[%emt 0:08:13]} 11. exf6 {[%emt 0:02:11]} (11. Qe2 {simplifies} fxe5 12. Nxe5 Nxe5 13. Qxe5 Nf6 14. Bf4) 11... Nxf6 {[%emt 0:14:35]} 12. Qg5 {[%emt 0:00:59]} Kf7 {[%emt 0:05:01]} 13. Bf4 {[%emt 0:25:45]} Bd6 {[%emt 0:05:32]} 14. O-O {[%emt 0:05:11] White is much more active.} Rf8 {[%emt 0:04:04]} 15. Rae1 {[%emt 0:03:02]} Kg8 {[%emt 0:04:27]} 16. Bxd6 {[%emt 0:00:44]} Qxd6 {[%emt 0:00:10]} 17. Ne5 {[%emt 0:03:47]} Nxe5 {[%emt 0:05:44]} (17... h6 $1 $11 18. Qg3 Nh5) 18. Qxe5 $14 {[%emt 0:00:50]} Qxe5 {[%emt 0:04:23]} 19. Rxe5 {[%emt 0:00:20]} Bd7 {[%emt 0:01:33]} 20. f3 {[%emt 0:00:55]} Kf7 {[%emt 0:03:57][%cal Bg8f7,Bf7e7,Be7d6][%mdl 32]} 21. Rfe1 {[%emt 0:00:13]} Rae8 {[%emt 0:01:26]} 22. h3 {[%emt 0:06:38]} g6 {[%emt 0:02:44]} 23. Ne2 {[%emt 0:00:36]} Ke7 {[%emt 0:02:59]} 24. f4 {[%emt 0:00:48]} Kd6 {[%emt 0:00:38]} 25. g3 {[%emt 0:00:06]} Ng8 {[%emt 0:02:34][%cal Bf6g8,Bg8h6,Bh6f7][%mdl 32]} 26. Nd4 {[%emt 0:04:33]} Nh6 {[%emt 0:02:04]} 27. Nf3 {[%emt 0:02:22]} Nf7 {[%emt 0:00:34] Inhibits Ng5.} 28. R5e2 {[%emt 0:00:49]} Rg8 {[%emt 0:01:18]} 29. h4 {[%emt 0:00:24]} h6 {[%emt 0:01:17]} 30. Ne5 {[%emt 0:01:53]} Nxe5 {[%emt 0:01:03]} 31. Rxe5 {[%emt 0:00:05]} ({Of course not} 31. fxe5+ Kc5 $17) 31... Ref8 {[%emt 0:01:51]} 32. c3 {[%emt 0:01:08]} (32. Kh2 $14) 32... a5 {[%emt 0:01:20][%cal Og6g5]} 33. R1e3 {[%emt 0:01:19]} b6 {[%emt 0:03:28]} 34. Kg2 {[%emt 0:02:33]} Rf6 {[%emt 0:01:12]} 35. Be2 {[%emt 0:02:50]} b5 {[%emt 0:02:54]} 36. b4 {[%emt 0:01:20]} axb4 {[%emt 0:00:29]} 37. axb4 {[%emt 0:00:03]} Ra8 {[%emt 0:01:06]} 38. h5 {[%emt 0:01:30]} gxh5 {[%emt 0:00:12]} 39. Bxh5 {[%emt 0:00:23]} Ra2+ {[%emt 0:00:48]} 40. Re2 {[%emt 0:00:05]} Ra3 {[%emt 0:00:54]} 41. R5e3 {[%emt 0:15:16][%cal Oc3c4]} Bc6 {[%emt 0:02:48]} 42. Bf3 {[%emt 0:00:00][%cal Oc3c4]} Ra1 {[%emt 0:04:53]} 43. Kf2 {[%emt 0:00:00]} Bd7 {[%emt 0:00:27]} 44. Rd3 {[%emt 0:00:00]} Bc6 {[%emt 0:01:43]} 45. Rdd2 {[%emt 0:00:00]} Ra3 {[%emt 0:00:40]} 46. Re3 {[%emt 0:00:00][%cal Oc3c4]} Ra1 {[%emt 0:00:15]} 47. Re1 {[%emt 0:00:00]} Ra3 {[%emt 0:01:04]} 48. Rc1 {[%emt 0:00:27]} e5 {[%emt 0:03:24]} 49. fxe5+ {[%emt 0:00:22]} Kxe5 {[%emt 0:00:07]} 50. Kg2 {[%emt 0:02:03]} Kd6 {[%emt 0:01:16]} 51. Rcc2 {[%emt 0:01:31]} Re6 {[%emt 0:01:00]} 52. Kf2 {[%emt 0:00:20]} Rf6 {[%emt 0:00:04]} 53. Rd4 {[%emt 0:00:13]} Ke5 {[%emt 0:02:26][%cal Oa3c3]} 54. Ke3 {[%emt 0:00:59]} Rg6 {[%emt 0:00:50]} 55. g4 {[%emt 0:01:28]} Rf6 {[%emt 0:00:53]} 56. Rc1 {[%emt 0:01:24]} Kd6 {[%emt 0:01:17]} 57. Rf4 {[%emt 0:01:37]} Rxf4 {[%emt 0:01:05]} 58. Kxf4 $11 {[%emt 0:00:02][%mdl 4096] Endgame. KRB-KRB} Ra7 {[%emt 0:00:13]} 59. Kg3 {[%emt 0:00:55]} Rf7 {[%emt 0:00:54]} 60. Bg2 {[%emt 0:00:47]} Rf6 {[%emt 0:00:32]} 61. Ra1 {[%emt 0:00:56]} Re6 {[%emt 0:00:24]} 62. Rh1 {[%emt 0:00:55]} Rf6 {[%emt 0:00:24]} 63. Rh5 {[%emt 0:00:15]} Bb7 {[%emt 0:00:24]} 64. Rh2 {[%emt 0:01:55]} Bc6 {[%emt 0:00:25]} 65. Bf3 {[%emt 0:00:16]} Bd7 {[%emt 0:00:40]} 66. Ra2 {[%emt 0:00:26]} Bc6 {[%emt 0:01:17]} 67. Ra7 {[%emt 0:00:21]} Re6 {[%emt 0:00:23]} 68. Kf2 {[%emt 0:01:45]} Rf6 {[%emt 0:00:11][%cal Od5d4] Threatens to win with ...d4!} 69. Ke2 {[%emt 0:00:10]} Re6+ {[%emt 0:00:30]} 70. Kd2 {[%emt 0:00:24]} d4 {[%emt 0:01:01]} 71. Bxc6 {[%emt 0:00:05]} dxc3+ {[%emt 0:00:04]} 72. Kxc3 {[%emt 0:00:04]} Kxc6 {[%emt 0:00:05] KR-KR} 73. Kd4 {[%emt 0:00:12]} Kb6 {[%emt 0:00:38] Inhibits Ra6+.} 74. Rg7 {[%emt 0:00:09]} Kc6 {[%emt 0:00:34]} 75. Rg8 {[%emt 0:00:05]} Kd6 {[%emt 0:00:50]} 76. Ra8 {[%emt 0:00:09] White threatens Ra6+ and mate.} Kc7 {[%emt 0:00:31]} 77. Rg8 {[%emt 0:01:38]} Kd6 {[%emt 0:00:16]} 78. Rb8 {[%emt 0:00:42]} Kc6 {[%emt 0:00:12] Dodges Rb6+} 79. Ra8 {[%emt 0:00:18]} Kc7 {[%emt 0:00:42]} 80. Ra7+ {[%emt 0:00:30]} Kb6 {[%emt 0:00:13]} 81. Rg7 {[%emt 0:00:13]} Kc6 {[%emt 0:00:07]} 82. Kd3 {[%emt 0:00:06]} Kb6 {[%emt 0:01:13]} 83. Rd7 {[%emt 0:01:57]} Kc6 {[%emt 0:00:54]} 84. Ra7 {[%emt 0:00:31]} Kb6 {[%emt 0:00:08]} 85. Rg7 {[%emt 0:00:03]} Kc6 {[%emt 0:00:05]} 86. Kd4 {[%emt 0:00:03]} Kb6 {[%emt 0:01:27]} 87. Kd5 {[%emt 0:00:10]} Rc6 {[%emt 0:00:25]} 88. Re7 {[%emt 0:00:47] Intending Re6 and mate.} Rc4 {[%emt 0:00:32]} 89. Re4 {[%emt 0:00:03]} Rc1 {[%emt 0:00:48]} 90. Re6+ {[%emt 0:00:06]} Kb7 {[%emt 0:00:10]} 91. Rxh6 {[%emt 0:00:05] aiming for g5.} Rc4 $1 {[%emt 0:00:16]} 92. g5 {[%emt 0:00:05]} Rxb4 {[%emt 0:00:20]} 93. Ke5 {[%emt 0:03:20] g6 would now be deadly.} Rg4 {[%emt 0:00:16]} 94. Kf5 {[%emt 0:00:05]} Rg1 {[%emt 0:00:05]} 95. Re6 {[%emt 0:00:19] Strongly threatening g6.} Rf1+ {[%emt 0:00:52]} 96. Kg6 {[%emt 0:00:12]} Rb1 {[%emt 0:01:10]} 97. Kf7 {[%emt 0:00:23]} b4 $2 {[%emt 0:00:09][%mdl 8192] [#]} (97... Rf1+ $11 98. Kg7 b4) 98. Rf6 $1 $18 {[%emt 0:00:28] g6 would kill now.} b3 {[%emt 0:00:24] [#]} 99. g6 $2 {[%emt 0:00:09]} (99. Rf3 $1 {mates} Kc8 100. g6 b2 101. Rf2 Kd7 102. g7 Rd1 103. Rxb2 (103. g8=R $2 {is the wrong capture.} b1=Q $19) 103... Rf1+ 104. Kg8) 99... Kc7 $2 {[%emt 0:01:06][%mdl 8192]} (99... Ra1 $11 100. Rf2 (100. Rf3 Ra3 $11) 100... Ra2) 100. g7 {[%emt 0:00:43] Weighted Error Value: White=0.08 (flawless) /Black=0.08 (flawless) .  Loses game:     	---       	Black=1      Mistake:       	White=1     	Black=1      Inaccurate:     	White=4     	Black=5      OK:         	White=28    	Black=44     Best:        	White=3     	Black=3      Strong:       	White=1     	Black=1} 1-0

[Event "CIS Master Groups 2024"]
[Site "Vasto"]
[Date "2024.04.10"]
[Round "4.11"]
[White "Titze, Leo"]
[Black "Di Benedetto, Edoardo"]
[Result "0-1"]
[ECO "E48"]
[WhiteElo "2219"]
[BlackElo "2400"]
[Annotator "TA"]
[PlyCount "148"]
[EventDate "2024.04.07"]
[EventType "team-tourn"]
[EventCountry "ITA"]
[SourceTitle "playchess.com"]
[Source "ChessBase"]
[SourceQuality "1"]
[TimeControl "40/5400+30:900+30"]

{[%evp 22,148,0,-21,-9,-15,-6,-49,0,-40,-36,-40,-33,-35,-43,-31,-34,-39,-37,-42,-27,-52,-35,-44,-34,-35,-28,-42,-43,-52,-53,-70,0,-7,0,-66,0,-44,-40,-44,-30,-30,-37,-31,-30,-30,-19,-30,-30,-30,-30,-30,-5,-54,-54,-197,-148,-152,-150,-212,-245,-195,-45,-45,-17,-17,-9,-3,-3,-58,-45,-191,-45,-75,-75,-126,-77,-89,-44,-44,-42,-273,-277,-281,-253,-646,-639,-624,-497,-665,-655,-665,-617,-721,-721,-805,-721,-798,-721,-780,-721,-724,-709,-778,-702,-699,-676,-661,-514,-790,-671,-664,-660,-1660,-1599,-1691,-1691,-1502,-1040,-6058,-6058,-6058,-6058,-5968,-5968,-5942,-5916,-5065,-4619]} 1. d4 {[%emt 0:02:34]} Nf6 {[%emt 0:00:54]} 2. c4 {[%emt 0:00:17]} e6 {[%emt 0:00:08]} 3. Nc3 {[%emt 0:00:45]} Bb4 {[%emt 0:00:14]} 4. e3 {[%emt 0:00:43]} O-O {[%emt 0:01:29]} 5. Bd3 {[%emt 0:00:28]} c5 {[%emt 0:01:46]} 6. Nge2 {[%emt 0:00:28]} cxd4 {[%emt 0:08:49]} 7. exd4 {[%emt 0:00:16]} d5 {[%emt 0:00:08]} 8. O-O {[%emt 0:00:38]} dxc4 {[%emt 0:01:51]} 9. Bxc4 {[%emt 0:00:09]} Nbd7 {[%emt 0:01:12]} 10. Bg5 {[%emt 0:02:50]} Nb6 {[%emt 0:02:56]} 11. Bd3 {[%emt 0:03:37]} h6 {[%emt 0:10:00]} 12. Bxf6 {[%emt 0:04:43]} Qxf6 {[%emt 0:00:49]} 13. Ne4 {[%emt 0:00:29]} Qe7 {[%emt 0:08:43]} 14. Nf4 {[%emt 0:07:00]} Nd5 {[%emt 0:02:44]} (14... Rd8 $15) 15. Qf3 {[%emt 0:07:52]} Nxf4 {[%emt 0:01:03]} 16. Qxf4 {[%emt 0:00:46]} Rd8 {[%emt 0:08:01]} 17. Nc3 {[%emt 0:20:38]} Qf6 {[%emt 0:20:48]} 18. Qxf6 {[%emt 0:02:30]} gxf6 {[%emt 0:00:07]} 19. Rfd1 {[%emt 0:00:25]} f5 {[%emt 0:01:32]} (19... Rxd4 $2 {loses.} 20. Bh7+ Kxh7 21. Rxd4 $16) 20. Be2 {[%emt 0:01:44]} Bf8 {[%emt 0:07:10]} 21. f4 {[%emt 0:03:23]} Bg7 {[%emt 0:01:10]} 22. d5 {[%emt 0:00:16]} Bxc3 {[%emt 0:02:30]} 23. bxc3 {[%emt 0:00:10]} exd5 {[%emt 0:00:47]} 24. Rab1 {[%emt 0:02:19]} Rb8 {[%emt 0:07:25]} 25. Bf3 {[%emt 0:07:44]} Be6 {[%emt 0:00:10]} 26. Rd4 {[%emt 0:03:00]} b5 {[%emt 0:00:25]} (26... Rd7 $1 $15) 27. a4 $11 {[%emt 0:01:35]} bxa4 {[%emt 0:01:18]} 28. Ra1 {[%emt 0:03:18]} (28. Rxb8 $11 Rxb8 29. Rxa4) 28... Rbc8 {[%emt 0:02:37]} (28... Rdc8 $15) 29. Raxa4 {[%emt 0:02:06]} Rxc3 {[%emt 0:00:51]} 30. Rxa7 {[%emt 0:04:16]} Rc4 {[%emt 0:01:04]} 31. Ra4 {[%emt 0:00:37]} Rb8 {[%emt 0:01:00]} 32. Kf2 {[%emt 0:02:23]} Rb2+ {[%emt 0:00:18]} 33. Ke3 {[%emt 0:02:33]} Kf8 {[%emt 0:01:10]} 34. Ra3 {[%emt 0:02:32]} Ke7 {[%emt 0:01:52]} 35. Rxc4 {[%emt 0:04:53]} dxc4 {[%emt 0:00:07]} 36. Kd4 {[%emt 0:00:18]} Rb3 {[%emt 0:01:46]} 37. Ra7+ {[%emt 0:01:33]} (37. Rxb3 $1 $11 cxb3 38. Kc3) 37... Kf6 $15 {[%emt 0:00:18]} 38. Rc7 {[%emt 0:00:18]} (38. Be2 $15) 38... Rd3+ $19 {[%emt 0:01:06]} 39. Kc5 {[%emt 0:00:12]} Rd2 {[%emt 0:00:20]} 40. Kb4 {[%emt 0:01:26] [#]} (40. Rc6 $17) 40... Rd4 $1 $19 {[%emt 0:00:05]} 41. Kc3 {[%emt 0:16:30]} Rd3+ {[%emt 0:17:23]} (41... Rxf4 $19 42. Ra7 Rh4) 42. Kc2 $15 {[%emt 0:02:46]} Kg7 {[%emt 0:01:19]} 43. Be2 {[%emt 0:01:43]} Re3 {[%emt 0:00:26]} 44. Kd2 {[%emt 0:01:59]} Re4 {[%emt 0:00:28]} 45. Bf3 {[%emt 0:00:06]} ({White should try} 45. g3 $11) 45... Rd4+ {[%emt 0:00:17]} 46. Kc3 {[%emt 0:01:02]} ({Better is} 46. Ke3 $15 Rd3+ 47. Ke2) 46... Rd3+ {[%emt 0:00:07]} (46... Rxf4 $19 {And now ...Rh4 would win.} 47. h3 Kf6) 47. Kb4 {[%emt 0:00:00]} Kf8 {[%emt 0:00:00]} 48. h3 {[%emt 0:00:00] [#]} (48. Ra7 $142) 48... Ke8 {[%emt 0:00:00]} ({Black should play} 48... Rd4 $1 49. Be2 Rxf4 50. Bxc4 Rf2) 49. Ra7 $17 {[%emt 0:00:00]} Rb3+ {[%emt 0:00:00]} 50. Kc5 {[%emt 0:00:00]} c3 {[%emt 0:00:00]} 51. Kd4 $2 {[%emt 0:00:00]} (51. Ra1 $15) 51... c2 $19 {[%emt 0:00:00]} 52. Rc7 {[%emt 0:00:00]} Rb2 {[%emt 0:00:00]} 53. Bd5 $2 {[%emt 0:00:33]} (53. Ke3) 53... c1=Q $19 {[%emt 0:00:00]} 54. Rxc1 {[%emt 0:00:05]} Rd2+ {[%emt 0:00:00]} 55. Ke5 {[%emt 0:00:06]} Rxd5+ {[%emt 0:00:00]} 56. Kf6 {[%emt 0:00:06]} Rd4 {[%emt 0:00:00]} 57. g3 {[%emt 0:00:34]} Kf8 {[%emt 0:00:00]} 58. Rc6 {[%emt 0:01:26]} Kg8 {[%emt 0:00:00]} 59. Ra6 {[%emt 0:00:38]} Rc4 {[%emt 0:00:00]} 60. Rd6 {[%emt 0:00:41]} Rc7 {[%emt 0:02:11]} 61. Rd1 {[%emt 0:01:27]} Rc6 {[%emt 0:00:13]} 62. Rd8+ {[%emt 0:00:37]} Kh7 {[%emt 0:00:06]} 63. Rd2 {[%emt 0:00:32]} Rc3 {[%emt 0:03:26]} 64. Rg2 {[%emt 0:00:19]} Rc8 {[%emt 0:01:16]} 65. g4 {[%emt 0:00:35]} (65. Re2 $142) 65... fxg4 $19 {[%emt 0:00:39]} 66. hxg4 {[%emt 0:00:03]} Rc6 {[%emt 0:00:22]} 67. Ke7 {[%emt 0:01:21]} Kg7 {[%emt 0:00:41]} 68. f5 {[%emt 0:00:35]} Bd5 {[%emt 0:00:13]} 69. Rg1 {[%emt 0:01:33]} Rc2 {[%emt 0:01:11]} 70. g5 {[%emt 0:00:26]} Re2+ {[%emt 0:00:09]} 71. Kd6 {[%emt 0:00:05]} Bg2 {[%emt 0:00:11]} 72. gxh6+ {[%emt 0:01:18]} Kxh6 {[%emt 0:00:06]} 73. Ra1 {[%emt 0:00:08]} Kg5 {[%emt 0:00:17]} 74. Ra5 {[%emt 0:00:44]} f6 {[%emt 0:00:06]} 0-1

[Event "CIS Master Groups 2024"]
[Site "Vasto"]
[Date "2024.04.10"]
[Round "4.12"]
[White "Ladron De Guevara Pinto, Paolo"]
[Black "Botta, Massimiliano"]
[Result "1-0"]
[ECO "E92"]
[WhiteElo "2394"]
[BlackElo "2188"]
[Annotator "TA"]
[PlyCount "59"]
[EventDate "2024.04.07"]
[EventType "team-tourn"]
[EventCountry "ITA"]
[SourceTitle "playchess.com"]
[Source "ChessBase"]
[SourceQuality "1"]
[TimeControl "40/5400+30:900+30"]

{[%evp 27,59,17,38,28,57,35,30,0,88,63,52,64,85,50,208,223,241,252,268,252,274,260,259,248,498,431,461,458,458,412,1506,443,1696,1571]} 1. d4 {[%emt 0:00:04]} Nf6 {[%emt 0:03:07]} 2. c4 {[%emt 0:00:13]} g6 {[%emt 0:00:10]} 3. Nc3 {[%emt 0:02:07]} Bg7 {[%emt 0:00:07]} 4. e4 {[%emt 0:00:51]} d6 {[%emt 0:00:14]} 5. Nf3 {[%emt 0:01:00]} O-O {[%emt 0:00:17]} 6. Be2 {[%emt 0:00:15]} e5 {[%emt 0:00:36]} 7. d5 {[%emt 0:01:06]} a5 {[%emt 0:00:15]} 8. Bg5 {[%emt 0:00:46]} h6 {[%emt 0:00:32]} 9. Bh4 {[%emt 0:01:38]} Na6 {[%emt 0:00:12]} 10. Nd2 {[%emt 0:01:35]} Qe8 {[%emt 0:01:42]} 11. a3 {[%emt 0:05:14]} Bd7 {[%emt 0:00:50]} 12. b3 {[%emt 0:02:05]} Nh7 {[%emt 0:00:21]} 13. O-O {[%emt 0:10:01]} h5 {[%emt 0:00:34]} 14. f3 {[%emt 0:00:07]} Bf6 {[%emt 0:00:12]} 15. Bf2 {[%emt 0:03:53]} Bg5 {[%emt 0:00:05]} 16. Rb1 {[%emt 0:09:32]} Qe7 {[%emt 0:04:18]} 17. Bd3 {[%emt 0:20:14] White has an edge.} f5 {[%emt 0:20:11]} (17... h4 $11) 18. b4 $16 {[%emt 0:01:20]} axb4 {[%emt 0:00:28]} 19. axb4 {[%emt 0:00:05][%cal Oc4c5]} Nf6 {[%emt 0:07:42]} 20. c5 {[%emt 0:06:02]} Bxd2 $2 {[%emt 0:06:22] [#] This costs Black the game.} (20... h4 $14) 21. Qxd2 $18 {[%emt 0:00:14]} fxe4 {[%emt 0:00:05]} 22. Nxe4 {[%emt 0:02:31]} ({But not} 22. Bxe4 Nxe4 23. Nxe4 Bf5) 22... Nxe4 {[%emt 0:03:33]} 23. Bxe4 {[%emt 0:07:58]} Bf5 {[%emt 0:11:50]} 24. c6 {[%emt 0:01:10]} Bxe4 {[%emt 0:00:38]} 25. fxe4 {[%emt 0:00:05]} Rfb8 {[%emt 0:04:06] [#]} (25... bxc6 {keeps fighting.} 26. dxc6 Rfb8) 26. cxb7 {[%emt 0:12:03]} Rxb7 {[%emt 0:00:07]} 27. Ra1 {[%emt 0:00:09]} Rbb8 {[%emt 0:05:41]} 28. Ra3 {[%emt 0:02:45]} Qe8 {[%emt 0:08:22]} (28... Kg7 $142 29. Rfa1 Rxb4) 29. Rfa1 {[%emt 0:01:14]} (29. Qh6 $142 {Bh4 would kill now.} Qf7 30. Rg3) 29... Qb5 {[%emt 0:01:26]} (29... Nxb4 $142 30. Rxa8 Rxa8 31. Rxa8 Qxa8 32. Qxb4 g5) 30. Qh6 {[%emt 0:00:19] Weighted Error Value: White=0.70/Black=0.63.  Mistake:       	White=1     	Black=5      Inaccurate:     	White=2     	Black=1      OK:         	---       	Black=3      Best:        	White=2     	---} 1-0

[Event "CIS Master Groups 2024"]
[Site "Vasto"]
[Date "2024.04.10"]
[Round "4.13"]
[White "Socko, Bartosz"]
[Black "Glek, Igor"]
[Result "1/2-1/2"]
[ECO "A85"]
[WhiteElo "2565"]
[BlackElo "2409"]
[Annotator "TA"]
[PlyCount "167"]
[EventDate "2024.04.07"]
[EventType "team-tourn"]
[EventCountry "ITA"]
[SourceTitle "playchess.com"]
[Source "ChessBase"]
[SourceQuality "1"]
[TimeControl "40/5400+30:900+30"]

{[%evp 43,167,65,65,40,88,88,88,88,102,102,102,102,102,102,102,36,88,0,102,52,104,96,99,96,95,73,95,68,113,107,93,95,108,99,99,72,81,29,70,50,200,0,0,0,0,0,30,25,25,25,35,0,0,0,0,0,0,0,0,0,0,0,0,0,0,0,0,0,0,0,0,0,0,0,0,0,0,0,0,0,0,0,0,0,0,0,0,0,0,0,0,0,0,0,0,0,0,0,0,0,0,0,0,0,0,0,0,0,0,0,0,0,0,0,0,0,0,0,0,0,0,0,0,0,0,0]} 1. d4 {[%emt 0:00:03]} e6 {[%emt 0:00:26]} 2. c4 {[%emt 0:00:25]} f5 {[%emt 0:00:37]} 3. Nc3 {[%emt 0:00:08]} Bb4 {[%emt 0:00:11]} 4. g3 {[%emt 0:00:35]} Nf6 {[%emt 0:00:12]} 5. Bg2 {[%emt 0:00:13]} O-O {[%emt 0:04:34]} 6. Nf3 {[%emt 0:00:41]} d6 {[%emt 0:06:08] A85: Dutch Defence: 2 c4 Nf6 3 Nc3.} 7. Qb3 {[%emt 0:03:35]} Nc6 {[%emt 0:09:18]} 8. O-O {[%emt 0:00:35]} Bxc3 {[%emt 0:00:15]} 9. Qxc3 {[%emt 0:00:08]} Ne4 {[%emt 0:01:26]} 10. Qd3 {[%emt 0:00:48]} Qf6 {[%emt 0:00:32]} 11. b3 $146 {[%emt 0:08:31]} ({Predecessor:} 11. e3 e5 12. b3 exd4 13. exd4 Bd7 14. Bb2 Rae8 15. Rae1 a5 16. a3 Qh6 17. Re3 {1-0 Karl,H (2255)-Krouzel,J (2240) Imperia op-A 36th 1994 (8.17)}) 11... e5 {[%emt 0:29:53]} 12. Bb2 {[%emt 0:04:30]} exd4 {[%emt 0:04:12]} 13. Nxd4 {[%emt 0:01:25]} Nxd4 {[%emt 0:10:32]} 14. Bxd4 {[%emt 0:00:39]} Qe7 {[%emt 0:00:04]} 15. Rae1 {[%emt 0:18:45]} Bd7 {[%emt 0:04:22]} 16. f3 {[%emt 0:11:23]} Ng5 {[%emt 0:01:00]} 17. h4 {[%emt 0:03:45]} Ne6 {[%emt 0:02:29]} 18. f4 {[%emt 0:00:06]} Bc6 {[%emt 0:03:23]} 19. Bxc6 {[%emt 0:01:48]} bxc6 {[%emt 0:00:02]} 20. e4 {[%emt 0:00:13]} Nxd4 {[%emt 0:03:28]} 21. Qxd4 {[%emt 0:00:06]} c5 {[%emt 0:07:42]} 22. exf5 {[%emt 0:11:54]} Qf7 {[%emt 0:00:22]} 23. Qc3 {[%emt 0:00:08]} h5 {[%emt 0:02:52] [#]} (23... Rae8 $14) 24. Re6 $1 $16 {[%emt 0:02:01]} Qxf5 {[%emt 0:00:09]} 25. Rfe1 {[%emt 0:00:05]} Rf7 {[%emt 0:01:05]} 26. Kg2 {[%emt 0:02:21]} Raf8 {[%emt 0:00:33]} 27. Qf3 {[%emt 0:00:10]} a5 {[%emt 0:01:50]} 28. R6e4 {[%emt 0:01:27]} Rf6 {[%emt 0:03:13]} 29. Rd1 {[%emt 0:00:32]} ({White should try} 29. Kh2 $16) 29... Qg6 {[%emt 0:00:24]} (29... Qg4 $14) 30. Rde1 {[%emt 0:03:55]} Qf5 $1 {[%emt 0:00:18]} 31. R1e2 {[%emt 0:01:05]} (31. Kh2 $16) 31... Kh7 {[%emt 0:01:32]} (31... Qg4 $1 $14) 32. Kf2 {[%emt 0:02:59]} Kg8 {[%emt 0:01:00]} 33. Re7 {[%emt 0:02:26]} (33. Re8 {seems wilder.} Qg4 34. Qd5+ Kh7 35. Qg5) 33... R6f7 {[%emt 0:00:12]} 34. R7e3 {[%emt 0:01:43]} Rf6 {[%emt 0:00:58]} 35. Rd2 {[%emt 0:02:08]} Qg6 {[%emt 0:01:37]} 36. Rd5 {[%emt 0:01:06]} Rf5 {[%emt 0:00:09]} 37. Re7 {[%emt 0:00:25]} R8f7 {[%emt 0:01:22]} 38. Re8+ {[%emt 0:06:36]} Kh7 {[%emt 0:00:05]} 39. Rxf5 {[%emt 0:03:56]} Qxf5 {[%emt 0:00:18]} 40. Qa8 {[%emt 0:00:05]} (40. Qc3 $16) 40... Qc2+ {[%emt 0:01:09]} 41. Re2 {[%emt 0:15:14]} Qf5 {[%emt 0:05:41]} (41... Qd3 $14) 42. Kg2 $2 {[%emt 0:00:00]} (42. Qxa5 $18 {Threatens to win with Qc3.} g5 43. hxg5) 42... Qd3 $1 $11 {[%emt 0:00:59]} 43. Re8 {[%emt 0:00:00]} Qc2+ {[%emt 0:00:37]} 44. Kh3 {[%emt 0:00:00]} Qf5+ {[%emt 0:03:47]} 45. Kh2 {[%emt 0:00:00]} a4 {[%emt 0:01:56]} 46. Qf3 {[%emt 0:00:00]} axb3 {[%emt 0:01:04]} 47. axb3 {[%emt 0:00:00]} Qc2+ {[%emt 0:00:48]} 48. Re2 {[%emt 0:00:00]} Qf5 {[%emt 0:00:22]} 49. Kg2 {[%emt 0:00:00]} Rf6 {[%emt 0:02:36]} 50. Rd2 {[%emt 0:00:00]} g6 {[%emt 0:00:55]} 51. Qc6 {[%emt 0:00:00]} Rf7 {[%emt 0:00:25]} 52. Qe8 {[%emt 0:00:00]} Kg7 {[%emt 0:00:48]} 53. Qe3 {[%emt 0:00:03]} Qf6 {[%emt 0:01:13]} 54. Re2 {[%emt 0:00:23]} Qa1 {[%emt 0:00:13]} 55. Qd3 {[%emt 0:00:38]} Qf6 {[%emt 0:00:18]} 56. Qe4 {[%emt 0:01:13]} Qf5 {[%emt 0:00:36]} 57. Qf3 {[%emt 0:02:24]} Qf6 {[%emt 0:00:15]} 58. Qe3 {[%emt 0:00:06]} Qa1 {[%emt 0:00:07]} 59. Qd2 {[%emt 0:01:09]} Qf6 {[%emt 0:00:21]} 60. Qe1 {[%emt 0:00:05]} Qf5 {[%emt 0:01:19]} 61. Re4 {[%emt 0:00:55]} Qf6 {[%emt 0:00:17]} 62. Qe2 {[%emt 0:00:21]} Qc3 {[%emt 0:00:16]} 63. Re3 {[%emt 0:00:09]} Qd4 {[%emt 0:01:25]} 64. Re6 {[%emt 0:00:06]} Rf6 {[%emt 0:00:37]} 65. Re8 {[%emt 0:00:23]} Rf7 {[%emt 0:00:16]} 66. Kh2 {[%emt 0:02:41]} Qc3 {[%emt 0:00:22]} 67. Re3 {[%emt 0:00:06]} Qd4 {[%emt 0:00:41]} 68. Re6 {[%emt 0:00:05]} Rf6 {[%emt 0:00:36]} 69. Re4 {[%emt 0:03:36]} Qc3 {[%emt 0:00:05]} 70. Re7+ {[%emt 0:00:13]} Rf7 {[%emt 0:00:07]} 71. f5 {[%emt 0:00:09]} Qf6 {[%emt 0:01:05]} 72. Rxf7+ {[%emt 0:00:10]} Kxf7 {[%emt 0:00:16]} 73. fxg6+ {[%emt 0:00:05]} Kxg6 {[%emt 0:00:14]} 74. Qe8+ {[%emt 0:00:35]} Kh6 {[%emt 0:00:21]} 75. Qe3+ {[%emt 0:00:14]} Kg6 {[%emt 0:00:10]} 76. Kg2 {[%emt 0:00:10]} Qf5 {[%emt 0:00:25]} 77. Qe8+ {[%emt 0:00:18]} Kh6 {[%emt 0:00:31]} 78. Qe2 {[%emt 0:00:24]} Kg6 {[%emt 0:00:24]} 79. Kh2 {[%emt 0:00:34]} Kf6 {[%emt 0:00:28]} 80. Kg2 {[%emt 0:00:27]} Kg6 {[%emt 0:01:47]} 81. Qe8+ {[%emt 0:00:07]} Kh6 {[%emt 0:00:05]} 82. Qh8+ {[%emt 0:03:11]} Kg6 {[%emt 0:00:02]} 83. Qe8+ {[%emt 0:00:08]} Kh6 {[%emt 0:00:06]} 84. Qh8+ {[%emt 0:07:44]} 1/2-1/2